{"text_format":"1","workbook":"xlsx","n_sheets":2,"sheets":["Ведомость дефектов 1","Шаблон"],"not_rendered":{"charts":0,"images":0,"macros":1,"external_links":0,"defined_names":3,"comments":0,"pivot_tables":0},"unopened":[],"bounds":{"document_bytes":16777216,"sheet_cells":100000,"rows_first":2000,"rows_last":500,"rows_between":2000,"halvings":0,"cell_chars":16384,"cell_head_chars":4096},"cells_cut":0,"cells_raw":0,"read":"whole","date_system":"1900"}

{"sheet":"Ведомость дефектов 1","index":0,"n_rows":61,"n_cols":5,"rows_kept":61,"cut":false,"hidden":false,"merged":[[23,0,23,1],[24,0,24,1],[24,2,24,3],[9,4,10,4],[10,1,10,3],[11,1,11,3],[20,0,20,2],[21,0,21,1],[0,1,0,2],[5,1,5,4],[6,1,6,4],[7,1,7,4],[8,1,8,4]]}
[null,null,null,null,"25 от 24.06.22 г."]
[null,null,null,null,{"$f":"VLOOKUP(E4,B68:C70,2,)","v":{"$error":"#N/A"}}]
[]
[null,null,null,null,"Кузрановов О.П. "]
[null,null,null,null,"2022-10-31"]
[]
[]
[]
[]
[]
[]
[]
[]
[]
[null,"Аппаратура студийная МС 8/2","222222222222222222","Аппаратура селекторных совещаний. Состав: - усилительный блок; - пульты участников в составе: микрофонной стойки, громкоговорителя."]
[]
[]
[]
[]
[]
["Председатель комиссии:"]
[null,null,{"$f":"VLOOKUP(E22,$B$50:$C$67,2,A$1)","v":"Инженер участка связи "},null,"Молов Д.А. "]
["Заместитель председателя комиссии:"]
[null,null,{"$f":"VLOOKUP(E24,$B$50:$C$67,2,A$1)","v":"Инженер II категории  участка связи "},null,"Петрова А.В."]
["Члены комиссии:"]
[null,null,{"$f":"VLOOKUP(E26,$B$50:$C$67,2,A$1)","v":"Врио заместителя главного инженера "},null,"Ганраева Ю.С. "]
[null,null,"Инженер участка связи ",null,"Молов Д.А. "]
[null,null,"Ведущий инженер ПТО",null,"Балундина В.В."]
[null,null,"Начальник ПТО",null,"Юруба А.В."]
[null,null,"Заместитель начальника управления",null,"Негру А.А."]
[null,null,"Начальник НгнЦС",null,"Шевченко А.В."]
[]
[]
[]
[]
[]
[]
[]
[]
[]
[]
[]
[]
[]
[]
[]
[]
[]
[]
[null,"Петрова А.В.","Инженер II категории  участка связи "]
[null,"Балундина В.В.","Ведущий инженер ПТО"]
[null,"Ганраева Ю.С. ","Врио заместителя главного инженера "]
[null,"Молов Д.А. ","Инженер участка связи "]
[null,"Шевченко А.В.","Начальник НгнЦС"]
[null,"Курпатов О.П. ","Главный инженер"]
[null,"Кулясов Е.В.","Врио заместителя начальника управления"]
[null,"Юруба А.В.","Начальник ПТО"]
[null,"Курбатов А.А.","Начальник управления"]
[null,"Лазарева А.А.","Ведущий инженер ПТО"]
[null,"Негру А.А.","Заместитель начальника управления"]
[null,"Маркович А.З. ","Руководитель группы  МТС"]

{"sheet":"Шаблон","index":1,"n_rows":34,"n_cols":5,"rows_kept":34,"cut":false,"hidden":false,"merged":[]}
["Закладка","Текст закладки","Текст закладки","Текст закладки"]
["Акт обследования ",{"$f":"vvv('Ведомость дефектов 1'!B15,2)","v":"Аппаратура  студийная"},{"$f":"vvv('Ведомость дефектов 1'!B16,1)","v":{"$error":"#VALUE!"}},{"$f":"vvv('Ведомость дефектов 1'!B17,2)","v":{"$error":"#VALUE!"}}]
["Должность",{"$f":"INDIRECT(\"'Ведомость дефектов \"&COLUMN($A$1)&\"'!$E$2\")","v":{"$error":"#N/A"}},{"$f":"$B$3","v":{"$error":"#N/A"}},{"$f":"$B$3","v":{"$error":"#N/A"}}]
["ФамИО",{"$f":"INDIRECT(\"'Ведомость дефектов \"&COLUMN($A$1)&\"'!$E$4\")","v":"Кузрановов О.П. "},{"$f":"$B$4","v":"Кузрановов О.П. "},{"$f":"$B$4","v":"Кузрановов О.П. "}]
["ДАТА1",{"$f":"INDIRECT(\"'Ведомость дефектов \"&COLUMN($A$1)&\"'!$E$5\")","v":"2022-10-31"},{"$f":"INDIRECT(\"'Ведомость дефектов \"&COLUMN($A$1)&\"'!$E$5\")","v":"2022-10-31"},{"$f":"$B$5","v":"2022-10-31"}]
["ДАТА2",{"$f":"INDIRECT(\"'Ведомость дефектов \"&COLUMN($A$1)&\"'!$E$5\")","v":"2022-10-31"},{"$f":"INDIRECT(\"'Ведомость дефектов \"&COLUMN($A$1)&\"'!$E$5\")","v":"2022-10-31"},{"$f":"$B$6","v":"2022-10-31"}]
["Приказ","429 от 24.06.22 г.",{"$f":"$B$7","v":"429 от 24.06.22 г."},{"$f":"$B$7","v":"429 от 24.06.22 г."}]
["ФИОпред",{"$f":"j('Ведомость дефектов 1'!$C$22:$E$22)","v":"инженера участка связи - Молова Д.А."},{"$f":"$B$8","v":"инженера участка связи - Молова Д.А."},{"$f":"$B$8","v":"инженера участка связи - Молова Д.А."}]
["ФИОзам",{"$f":"j('Ведомость дефектов 1'!$C$24:$E$24)","v":"инженера II категории участка связи - Петровой А.В."},{"$f":"$B$9","v":"инженера II категории участка связи - Петровой А.В."},{"$f":"$B$9","v":"инженера II категории участка связи - Петровой А.В."},"Петровой"]
["ФИОчлком",{"$f":"j('Ведомость дефектов 1'!$C$26:$E$31)","v":"врио заместителя главного инженера - Ганраевой Ю.С.; инженера участка связи - Молова Д.А.; ведущего инженера ПТО - Балундину В.В.; начальника ПТО - Юрубы А.В.; заместителя начальника управления - Негру А.А.; начальника НгнЦС - Шевченко А.В."},{"$f":"$B$10","v":"врио заместителя главного инженера - Ганраевой Ю.С.; инженера участка связи - Молова Д.А.; ведущего инженера ПТО - Балундину В.В.; начальника ПТО - Юрубы А.В.; заместителя начальника управления - Негру А.А.; начальника НгнЦС - Шевченко А.В."},{"$f":"$B$10","v":"врио заместителя главного инженера - Ганраевой Ю.С.; инженера участка связи - Молова Д.А.; ведущего инженера ПТО - Балундину В.В.; начальника ПТО - Юрубы А.В.; заместителя начальника управления - Негру А.А.; начальника НгнЦС - Шевченко А.В."},"Ганраевой, Юрубы, но Негру"]
["ОС",{"$f":"INDIRECT(\"'Ведомость дефектов \"&COLUMN($A$1)&\"'!$B$15\")","v":"Аппаратура студийная МС 8/2"},{"$f":"INDIRECT(\"'Ведомость дефектов \"&COLUMN($A$1)&\"'!$B$16\")","v":"00:00:00"},{"$f":"INDIRECT(\"'Ведомость дефектов \"&COLUMN($A$1)&\"'!$B$17\")","v":"00:00:00"}]
["Инвномер",{"$f":"INDIRECT(\"'Ведомость дефектов \"&COLUMN($A$1)&\"'!C15\")","v":"222222222222222222"},{"$f":"INDIRECT(\"'Ведомость дефектов \"&COLUMN($A$1)&\"'!C16\")","v":0},{"$f":"INDIRECT(\"'Ведомость дефектов \"&COLUMN($A$1)&\"'!C17\")","v":0}]
["ОписаниеОС",{"$f":"INDIRECT(\"'Ведомость дефектов \"&COLUMN($A$1)&\"'!D15\")","v":"Аппаратура селекторных совещаний. Состав: - усилительный блок; - пульты участников в составе: микрофонной стойки, громкоговорителя."},{"$f":"INDIRECT(\"'Ведомость дефектов \"&COLUMN($A$1)&\"'!D16\")","v":0},{"$f":"INDIRECT(\"'Ведомость дефектов \"&COLUMN($A$1)&\"'!D17\")","v":0}]
["Выявлено","Неисправность платы усилителя","Неисправность модулятора, уровень гармоник превышает допускаемые значения, погрешность измерения мощности составляет до 60 %.","Неисправность модулятора, уровень гармоник превышает допускаемые значения, погрешность измерения мощности составляет до 60 %, прибор морально устарел"]
["ПричинаВыб","В связи с невозможностью использования объекта по назначению, он является непригодным для дальнейшей эксплуатации","В связи с невозможностью использования объекта по назначению, он является непригодным для дальнейшей эксплуатации","В связи с невозможностью использования прибора  по назначению, он является непригодным для дальнейшей эксплуатации"]
["ЦелВосст","Замена неисправных частей не представляется возможной. Подбор аналогичных запасных частей не представляется возможным (несовместимость компонентов), нецелесообразен. Объект морально устарел и выведен из эксплуатации, к дальнейшему использованию не планируется.","Замена неисправных частей не представляется возможной. Подбор аналогичных запасных частей не представляется возможным (несовместимость компонентов), нецелесообразен. Объект морально устарел и выведен из эксплуатации, к дальнейшему использованию не планируется.","Замена неисправных частей не представляется возможной, так как необходимые запасные части для данной модели устройства не выпускаются компанией-производителем. Подбор аналогичных запасных частей не представляется возможным, нецелесообразен. Объект выведен из эксплуатации, к дальнейшему использованию не планируется"]
["РеалОб","Техническое состояние устройства указывает на нецелесообразность его реализации в связи с потерей эксплуатационных свойств","Техническое состояние объекта указывает на нецелесообразность его реализации в связи с потерей эксплуатационных свойств","Техническое состояние РАДИОТЕСТОРА ZPFM-4U указывает на его нецелесообразность реализации в связи с потерей эксплуатационных свойств"]
["ВЫВОДЫ","В связи с моральным и физическим износом, невозможностью проведения ремонта, решено утилизировать данный объект.","В связи с моральным и физическим износом, невозможностью проведения ремонта, решено утилизировать данный объект.","В связи с моральным и физическим износом, невозможностью проведения ремонта, решено утилизировать данный объект."]
["Долж1",{"$f":"INDIRECT(\"'Ведомость дефектов \"&COLUMN(A$1)&\"'!$C$22\")","v":"Инженер участка связи "},{"$f":"$B$19","v":"Инженер участка связи "},{"$f":"$B$19","v":"Инженер участка связи "}]
["ФИО1",{"$f":"INDIRECT(\"'Ведомость дефектов \"&COLUMN(A$1)&\"'!$E$22\")","v":"Молов Д.А. "},{"$f":"$B$20","v":"Молов Д.А. "},{"$f":"$B$20","v":"Молов Д.А. "}]
["Долж2",{"$f":"INDIRECT(\"'Ведомость дефектов \"&COLUMN(A$1)&\"'!$C$24\")","v":"Инженер II категории  участка связи "},{"$f":"$B$21","v":"Инженер II категории  участка связи "},{"$f":"$B$21","v":"Инженер II категории  участка связи "}]
["ФИО2",{"$f":"INDIRECT(\"'Ведомость дефектов \"&COLUMN(A$1)&\"'!$E$24\")","v":"Петрова А.В."},{"$f":"$B$22","v":"Петрова А.В."},{"$f":"$B$22","v":"Петрова А.В."}]
["Долж3",{"$f":"INDIRECT(\"'Ведомость дефектов \"&COLUMN(A$1)&\"'!$C$26\")","v":"Врио заместителя главного инженера "},{"$f":"$B$23","v":"Врио заместителя главного инженера "},{"$f":"$B$23","v":"Врио заместителя главного инженера "}]
["ФИО3",{"$f":"INDIRECT(\"'Ведомость дефектов \"&COLUMN(A$1)&\"'!$E$26\")","v":"Ганраева Ю.С. "},{"$f":"$B$24","v":"Ганраева Ю.С. "},{"$f":"$B$24","v":"Ганраева Ю.С. "}]
["Долж4",{"$f":"INDIRECT(\"'Ведомость дефектов \"&COLUMN(A$1)&\"'!$C$27\")","v":"Инженер участка связи "},{"$f":"$B$25","v":"Инженер участка связи "},{"$f":"$B$25","v":"Инженер участка связи "}]
["ФИО4",{"$f":"INDIRECT(\"'Ведомость дефектов \"&COLUMN(A$1)&\"'!$E$27\")","v":"Молов Д.А. "},{"$f":"$B$26","v":"Молов Д.А. "},{"$f":"$B$26","v":"Молов Д.А. "}]
["Долж5",{"$f":"INDIRECT(\"'Ведомость дефектов \"&COLUMN(A$1)&\"'!$C$28\")","v":"Ведущий инженер ПТО"},{"$f":"$B$27","v":"Ведущий инженер ПТО"},{"$f":"$B$27","v":"Ведущий инженер ПТО"}]
["ФИО5",{"$f":"INDIRECT(\"'Ведомость дефектов \"&COLUMN(A$1)&\"'!$E$28\")","v":"Балундина В.В."},{"$f":"$B$28","v":"Балундина В.В."},{"$f":"$B$28","v":"Балундина В.В."}]
["Долж6",{"$f":"INDIRECT(\"'Ведомость дефектов \"&COLUMN(A$1)&\"'!$C$29\")","v":"Начальник ПТО"},{"$f":"$B$29","v":"Начальник ПТО"},{"$f":"$B$29","v":"Начальник ПТО"}]
["ФИО6",{"$f":"INDIRECT(\"'Ведомость дефектов \"&COLUMN(A$1)&\"'!$E$29\")","v":"Юруба А.В."},{"$f":"$B$30","v":"Юруба А.В."},{"$f":"$B$30","v":"Юруба А.В."}]
["Долж7",{"$f":"INDIRECT(\"'Ведомость дефектов \"&COLUMN(A$1)&\"'!$C$30\")","v":"Заместитель начальника управления"},{"$f":"$B$31","v":"Заместитель начальника управления"},{"$f":"$B$31","v":"Заместитель начальника управления"}]
["ФИО7",{"$f":"INDIRECT(\"'Ведомость дефектов \"&COLUMN(A$1)&\"'!$E$30\")","v":"Негру А.А."},{"$f":"$B$32","v":"Негру А.А."},{"$f":"$B$32","v":"Негру А.А."}]
["Долж8",{"$f":"INDIRECT(\"'Ведомость дефектов \"&COLUMN(A$1)&\"'!$C$31\")","v":"Начальник НгнЦС"},{"$f":"$B$33","v":"Начальник НгнЦС"},{"$f":"$B$33","v":"Начальник НгнЦС"}]
["ФИО8",{"$f":"INDIRECT(\"'Ведомость дефектов \"&COLUMN(A$1)&\"'!$E$31\")","v":"Шевченко А.В."},{"$f":"$B$34","v":"Шевченко А.В."},{"$f":"$B$34","v":"Шевченко А.В."}]